Workbook

Sheet グラフ
J4: 国名 | K4: 第１次産業人口割合 | L4: 第３次産業人口割合 | M4: marker
I5: 1 | J5: 日本 | K5: 3.8 | L5: 70.3 | M5: ●
I6: =+I5+1 -> 2 | J6: 中国 | K6: 33.6 | L6: 36.1 | M6: ●
I7: =+I6+1 -> 3 | J7: 韓国 | K7: 5.7 | L7: 69.7 | M7: ●
I8: 4 | J8: インド | K8: 47.2 | L8: 28.1 | M8: ●
I9: 5 | J9: アメリカ | K9: 1.6 | L9: 81.2 | M9: ●
I10: 6 | J10: ロシア | K10: 7.3 | L10: 64.9 | M10: ●
I11: 7 | J11: イギリス | K11: 1.2 | L11: 79.9 | M11: ●
I12: 8 | J12: エジプト | K12: 27.1 | L12: 48 | M12: ●
I13: 9 | J13: ガーナ | K13: 42 | L13: 42.8 | M13: ●
I14: 10 | J14: モンゴル | K14: 35 | L14: 46.8 | M14: ●
I21: 【操作手順】 ①初期画面を「消去画面」で消す。 ②次に国名，第一次産業人口割合，第三次産業人口割合のデータを上の表に入力する。 ③「描画」ボタンをクリックする。 ④「国名表示」ボタンをクリックする。 ⑤図中の国名の位置をマウスで動かして調整する。

Sheet 座標 (hidden)
B1: x | C1: y
A2: 原点 | B2: 10 | C2: 10
A3: A10 | B3: =B$2+5 -> 15 | C3: =B$2+8.66 -> 18.66
A4: A20 | B4: =B$2+10 -> 20 | C4: =B$2+17.32 -> 27.32
A5: A30 | B5: =B$2+15 -> 25 | C5: =B$2+25.98 -> 35.98
A6: A40 | B6: =B$2+20 -> 30 | C6: =B$2+34.64 -> 44.64
A7: A50 | B7: =B$2+25 -> 35 | C7: =B$2+43.3 -> 53.3
A8: A60 | B8: =B$2+30 -> 40 | C8: =B$2+51.96 -> 61.96
A9: A70 | B9: =B$2+35 -> 45 | C9: =B$2+60.62 -> 70.62
A10: A80 | B10: =B$2+40 -> 50 | C10: =B$2+69.28 -> 79.28
A11: A90 | B11: =B$2+45 -> 55 | C11: =B$2+77.94 -> 87.94
A12: A100 | B12: =B$2+50 -> 60 | C12: =B$2+86.6 -> 96.6
A13: B10 | B13: =B$2+90 -> 100 | C13: =B$2 -> 10
A14: B20 | B14: =B$2+80 -> 90 | C14: =B$2 -> 10
A15: B30 | B15: =B$2+70 -> 80 | C15: 10
A16: B40 | B16: =B$2+60 -> 70 | C16: 10
A17: B50 | B17: =B$2+50 -> 60 | C17: 10
A18: B60 | B18: =B$2+40 -> 50 | C18: 10
A19: B70 | B19: =B$2+30 -> 40 | C19: 10
A20: B80 | B20: =B$2+20 -> 30 | C20: 10
A21: B90 | B21: =B$2+10 -> 20 | C21: 10
A22: B100 | B22: =B$2 -> 10 | C22: 10
A23: C10 | B23: =B$2+55 -> 65 | C23: =B$2+77.94 -> 87.94
A24: C20 | B24: =B$2+60 -> 70 | C24: =B$2+69.28 -> 79.28
A25: C30 | B25: =B$2+65 -> 75 | C25: =B$2+60.62 -> 70.62
A26: C40 | B26: =B$2+70 -> 80 | C26: =B$2+51.96 -> 61.96
A27: C50 | B27: =B$2+75 -> 85 | C27: =B$2+43.3 -> 53.3
A28: C60 | B28: =B$2+80 -> 90 | C28: =B$2+34.64 -> 44.64
A29: C70 | B29: =B$2+85 -> 95 | C29: =B$2+25.98 -> 35.98
A30: C80 | B30: =B$2+90 -> 100 | C30: =B$2+17.32 -> 27.32
A31: C90 | B31: =B$2+95 -> 105 | C31: =B$2+8.66 -> 18.66
A32: C100 | B32: =B$2+100 -> 110 | C32: =B$2 -> 10

Sheet work (hidden)
A4: x | B4: y
A5: =座標!B$2+100-グラフ!L5-0.5*グラフ!K5 -> 37.8 | B5: =座標!C$2+0.866*グラフ!K5 -> 13.2908
A6: =座標!B$2+100-グラフ!L6-0.5*グラフ!K6 -> 57.1 | B6: =座標!C$2+0.866*グラフ!K6 -> 39.0976
A7: =座標!B$2+100-グラフ!L7-0.5*グラフ!K7 -> 37.45 | B7: =座標!C$2+0.866*グラフ!K7 -> 14.9362
A8: =座標!B$2+100-グラフ!L8-0.5*グラフ!K8 -> 58.3 | B8: =座標!C$2+0.866*グラフ!K8 -> 50.8752
A9: =座標!B$2+100-グラフ!L9-0.5*グラフ!K9 -> 28 | B9: =座標!C$2+0.866*グラフ!K9 -> 11.3856
A10: =座標!B$2+100-グラフ!L10-0.5*グラフ!K10 -> 41.45 | B10: =座標!C$2+0.866*グラフ!K10 -> 16.3218
A11: =座標!B$2+100-グラフ!L11-0.5*グラフ!K11 -> 29.5 | B11: =座標!C$2+0.866*グラフ!K11 -> 11.0392
A12: =座標!B$2+100-グラフ!L12-0.5*グラフ!K12 -> 48.45 | B12: =座標!C$2+0.866*グラフ!K12 -> 33.4686
A13: =座標!B$2+100-グラフ!L13-0.5*グラフ!K13 -> 46.2 | B13: =座標!C$2+0.866*グラフ!K13 -> 46.372
A14: =座標!B$2+100-グラフ!L14-0.5*グラフ!K14 -> 45.7 | B14: =座標!C$2+0.866*グラフ!K14 -> 40.31
